[Event "January 2 Late 2024"]
[Site "https://www.chess.com"]
[Date "2024.01.02"]
[Round "9"]
[White "Seemann, Jakub"]
[Black "Ambartsumova, Karina"]
[Result "1/2-1/2"]
[Board "38"]
[TimeControl "180+1"]
[WhiteFideId "21874697"]
[BlackFideId "4166299"]
[WhiteElo "2796"]
[BlackElo "2616"]
[WhiteTeam "POL"]
[BlackTeam "RUS"]
[WhiteClock "0:00:02"]
[BlackClock "0:00:11"]

1. d4 {[%clk 0:03:00]}  Nf6 {[%clk 0:03:00]} 2. Nf3 {[%clk 0:02:58]}  e6 {[%clk 0:03:00]} 3. Bf4 {[%clk 0:02:58]}  d5 {[%clk 0:03:00]} 4. e3 {[%clk 0:02:57]}  Bd6 {[%clk 0:03:00]} 5. c3 {[%clk 0:02:56]}  O-O {[%clk 0:02:58]} 6. Bd3 {[%clk 0:02:56]}  c5 {[%clk 0:02:59]} 7. O-O {[%clk 0:02:56]}  Qc7 {[%clk 0:02:58]} 8. Bxd6 {[%clk 0:02:54]}  Qxd6 {[%clk 0:02:59]} 9. Nbd2 {[%clk 0:02:54]}  Nbd7 {[%clk 0:02:57]} 10. e4 {[%clk 0:02:50]}  dxe4 {[%clk 0:02:53]} 11. Nxe4 {[%clk 0:02:49]}  Nxe4 {[%clk 0:02:53]} 12. Bxe4 {[%clk 0:02:50]}  Nf6 {[%clk 0:02:51]} 13. Bc2 {[%clk 0:02:47]}  b6 {[%clk 0:02:47]} 14. dxc5 {[%clk 0:02:40]}  Qxc5 {[%clk 0:02:45]} 15. Qe2 {[%clk 0:02:36]}  Bb7 {[%clk 0:02:41]} 16. Ne5 {[%clk 0:02:36]}  Rad8 {[%clk 0:02:33]} 17. Rad1 {[%clk 0:02:34]}  Rd5 {[%clk 0:02:26]} 18. Rfe1 {[%clk 0:01:55]}  g6 {[%clk 0:02:02]} 19. a3 {[%clk 0:01:51]}  Kg7 {[%clk 0:01:58]} 20. Bb3 {[%clk 0:01:49]}  Rxd1 {[%clk 0:01:54]} 21. Rxd1 {[%clk 0:01:50]}  b5 {[%clk 0:01:37]} 22. Rd4 {[%clk 0:01:48]}  a6 {[%clk 0:01:33]} 23. Ba2 {[%clk 0:01:31]}  Qc7 {[%clk 0:01:29]} 24. h3 {[%clk 0:01:24]}  Bd5 {[%clk 0:01:10]} 25. Bxd5 {[%clk 0:01:21]}  Nxd5 {[%clk 0:01:08]} 26. c4 {[%clk 0:01:20]}  bxc4 {[%clk 0:01:05]} 27. Rxc4 {[%clk 0:01:20]}  Qe7 {[%clk 0:00:56]} 28. b4 {[%clk 0:01:14]}  Qg5 {[%clk 0:00:53]} 29. Nd7 {[%clk 0:01:02]}  Rd8 {[%clk 0:00:47]} 30. Qe5+ {[%clk 0:01:02]}  Qxe5 {[%clk 0:00:47]} 31. Nxe5 {[%clk 0:01:03]}  Rd6 {[%clk 0:00:45]} 32. Rc6 {[%clk 0:00:49]}  Rxc6 {[%clk 0:00:42]} 33. Nxc6 {[%clk 0:00:49]}  f6 {[%clk 0:00:31]} 34. Kf1 {[%clk 0:00:49]}  Kf7 {[%clk 0:00:31]} 35. Ke2 {[%clk 0:00:49]}  e5 {[%clk 0:00:27]} 36. Nb8 {[%clk 0:00:46]}  Nc7 {[%clk 0:00:23]} 37. Kd3 {[%clk 0:00:46]}  Ke6 {[%clk 0:00:22]} 38. a4 {[%clk 0:00:46]}  f5 {[%clk 0:00:20]} 39. Kc4 {[%clk 0:00:46]}  h5 {[%clk 0:00:18]} 40. Kc5 {[%clk 0:00:45]}  e4 {[%clk 0:00:15]} 41. Kc6 {[%clk 0:00:19]}  Nd5 {[%clk 0:00:14]} 42. Nxa6 {[%clk 0:00:18]}  f4 {[%clk 0:00:11]} 43. Nc5+ {[%clk 0:00:16]}  Ke5 {[%clk 0:00:12]} 44. a5 {[%clk 0:00:14]}  Nxb4+ {[%clk 0:00:12]} 45. Kb5 {[%clk 0:00:15]}  Nd5 {[%clk 0:00:12]} 46. a6 {[%clk 0:00:13]}  Nc7+ {[%clk 0:00:12]} 47. Kc4 {[%clk 0:00:14]}  g5 {[%clk 0:00:09]} 48. a7 {[%clk 0:00:13]}  Na8 {[%clk 0:00:10]} 49. Nd7+ {[%clk 0:00:10]}  Ke6 {[%clk 0:00:10]} 50. Nf8+ {[%clk 0:00:10]}  Ke7 {[%clk 0:00:08]} 51. Nh7 {[%clk 0:00:08]}  g4 {[%clk 0:00:08]} 52. hxg4 {[%clk 0:00:06]}  hxg4 {[%clk 0:00:09]} 53. Kd4 {[%clk 0:00:07]}  e3 {[%clk 0:00:07]} 54. fxe3 {[%clk 0:00:07]}  fxe3 {[%clk 0:00:08]} 55. Kxe3 {[%clk 0:00:07]}  Kd6 {[%clk 0:00:08]} 56. Nf6 {[%clk 0:00:04]}  g3 {[%clk 0:00:08]} 57. Kf4 {[%clk 0:00:03]}  Kc6 {[%clk 0:00:08]} 58. Kxg3 {[%clk 0:00:04]}  Kb7 {[%clk 0:00:09]} 59. Kf4 {[%clk 0:00:04]}  Nc7 {[%clk 0:00:09]} 60. g4 {[%clk 0:00:04]}  Ne6+ {[%clk 0:00:09]} 61. Ke5 {[%clk 0:00:04]}  Ng5 {[%clk 0:00:10]} 62. Ne4 {[%clk 0:00:04]}  Nh3 {[%clk 0:00:09]} 63. Kf5 {[%clk 0:00:03]}  Kxa7 {[%clk 0:00:09]} 64. Nd2 {[%clk 0:00:02]}  Kb7 {[%clk 0:00:10]} 65. Nf3 {[%clk 0:00:01]}  Kc7 {[%clk 0:00:10]} 66. Ke4 {[%clk 0:00:02]}  Nf2+ {[%clk 0:00:10]} 67. Kf5 {[%clk 0:00:02]}  Nxg4 {[%clk 0:00:11]} 1/2-1/2

[Event "January 2 Late 2024"]
[Site "https://www.chess.com"]
[Date "2024.01.02"]
[Round "9"]
[White "Lie, Kjetil A."]
[Black "Olenik Campa, Rudi"]
[Result "1-0"]
[Board "40"]
[TimeControl "180+1"]
[WhiteFideId "1501984"]
[BlackFideId "14633264"]
[WhiteElo "2754"]
[BlackElo "2606"]
[WhiteTeam "NOR"]
[BlackTeam "SLO"]
[WhiteClock "0:00:03"]
[BlackClock "0:00:45"]

1. c4 {[%clk 0:03:00]}  g6 {[%clk 0:02:59]} 2. g3 {[%clk 0:03:00]}  Bg7 {[%clk 0:02:59]} 3. Bg2 {[%clk 0:03:01]}  e5 {[%clk 0:02:59]} 4. Nc3 {[%clk 0:03:01]}  Ne7 {[%clk 0:03:00]} 5. Nf3 {[%clk 0:03:01]}  O-O {[%clk 0:03:00]} 6. O-O {[%clk 0:03:01]}  d6 {[%clk 0:02:58]} 7. d4 {[%clk 0:03:01]}  exd4 {[%clk 0:02:58]} 8. Nxd4 {[%clk 0:03:01]}  Nbc6 {[%clk 0:02:57]} 9. Nxc6 {[%clk 0:02:58]}  Nxc6 {[%clk 0:02:58]} 10. Nd5 {[%clk 0:02:46]}  Ne5 {[%clk 0:02:56]} 11. Qc2 {[%clk 0:02:36]}  Bf5 {[%clk 0:02:55]} 12. e4 {[%clk 0:02:35]}  Bd7 {[%clk 0:02:55]} 13. Bd2 {[%clk 0:02:24]}  Bc6 {[%clk 0:02:54]} 14. Bc3 {[%clk 0:02:21]}  a6 {[%clk 0:02:51]} 15. f4 {[%clk 0:02:16]}  Nd7 {[%clk 0:02:42]} 16. Bxg7 {[%clk 0:02:15]}  Kxg7 {[%clk 0:02:43]} 17. Qc3+ {[%clk 0:02:14]}  Kg8 {[%clk 0:02:43]} 18. Rad1 {[%clk 0:02:11]}  Bxd5 {[%clk 0:02:42]} 19. cxd5 {[%clk 0:02:10]}  Rc8 {[%clk 0:02:38]} 20. Rfe1 {[%clk 0:02:08]}  c6 {[%clk 0:02:29]} 21. dxc6 {[%clk 0:02:05]}  Rxc6 {[%clk 0:02:30]} 22. Qb4 {[%clk 0:02:03]}  Qb6+ {[%clk 0:02:28]} 23. Qxb6 {[%clk 0:02:03]}  Rxb6 {[%clk 0:02:28]} 24. Re2 {[%clk 0:02:00]}  Nc5 {[%clk 0:02:25]} 25. Red2 {[%clk 0:01:46]}  Re8 {[%clk 0:02:21]} 26. Rxd6 {[%clk 0:01:29]}  Rxb2 {[%clk 0:02:20]} 27. e5 {[%clk 0:01:29]}  Rxa2 {[%clk 0:02:09]} 28. Rc1 {[%clk 0:01:28]}  Ne6 {[%clk 0:01:57]} 29. Bxb7 {[%clk 0:01:26]}  a5 {[%clk 0:01:56]} 30. Bd5 {[%clk 0:01:21]}  Rd2 {[%clk 0:01:51]} 31. Bxe6 {[%clk 0:01:10]}  Rxd6 {[%clk 0:01:50]} 32. Bxf7+ {[%clk 0:01:11]}  Kxf7 {[%clk 0:01:50]} 33. exd6 {[%clk 0:01:12]}  Ke6 {[%clk 0:01:46]} 34. Rc7 {[%clk 0:00:31]}  h5 {[%clk 0:01:41]} 35. Rg7 {[%clk 0:00:29]}  Kf6 {[%clk 0:01:41]} 36. Ra7 {[%clk 0:00:28]}  Rd8 {[%clk 0:01:41]} 37. Ra6 {[%clk 0:00:24]}  a4 {[%clk 0:01:38]} 38. Kg2 {[%clk 0:00:19]}  a3 {[%clk 0:01:37]} 39. Kh3 {[%clk 0:00:17]}  a2 {[%clk 0:01:37]} 40. d7+ {[%clk 0:00:17]}  Kf7 {[%clk 0:01:36]} 41. Rxa2 {[%clk 0:00:14]}  Rxd7 {[%clk 0:01:36]} 42. Kh4 {[%clk 0:00:15]}  Rd5 {[%clk 0:01:35]} 43. Ra6 {[%clk 0:00:15]}  Kg7 {[%clk 0:01:35]} 44. Re6 {[%clk 0:00:14]}  Kf7 {[%clk 0:01:28]} 45. Re5 {[%clk 0:00:14]}  Rd2 {[%clk 0:01:23]} 46. h3 {[%clk 0:00:14]}  Kf6 {[%clk 0:01:23]} 47. Ra5 {[%clk 0:00:12]}  Rh2 {[%clk 0:01:18]} 48. Ra6+ {[%clk 0:00:12]}  Kg7 {[%clk 0:01:17]} 49. Kg5 {[%clk 0:00:10]}  Rxh3 {[%clk 0:01:13]} 50. Rxg6+ {[%clk 0:00:11]}  Kf7 {[%clk 0:01:13]} 51. Kf5 {[%clk 0:00:11]}  Rh1 {[%clk 0:01:07]} 52. Ra6 {[%clk 0:00:09]}  Rg1 {[%clk 0:01:01]} 53. Ra7+ {[%clk 0:00:08]}  Kg8 {[%clk 0:00:59]} 54. Ra3 {[%clk 0:00:08]}  Kf7 {[%clk 0:00:57]} 55. Kg5 {[%clk 0:00:08]}  Rh1 {[%clk 0:00:56]} 56. Ra7+ {[%clk 0:00:08]}  Kf8 {[%clk 0:00:52]} 57. Ra8+ {[%clk 0:00:08]}  Kf7 {[%clk 0:00:51]} 58. Ra7+ {[%clk 0:00:08]}  Kf8 {[%clk 0:00:51]} 59. f5 {[%clk 0:00:08]}  Rg1 {[%clk 0:00:51]} 60. Ra3 {[%clk 0:00:07]}  Rh1 {[%clk 0:00:49]} 61. Kg6 {[%clk 0:00:05]}  h4 {[%clk 0:00:47]} 62. f6 {[%clk 0:00:03]}  Ke8 {[%clk 0:00:45]} 63. f7+ {[%clk 0:00:03]} 1-0

[Event "January 2 Late 2024"]
[Site "https://www.chess.com"]
[Date "2024.01.02"]
[Round "9"]
[White "Makridis, Dimitrios"]
[Black "Womacka, Mathias"]
[Result "0-1"]
[Board "43"]
[TimeControl "180+1"]
[WhiteFideId "25864475"]
[BlackFideId "4611390"]
[WhiteElo "2714"]
[BlackElo "2562"]
[WhiteTeam "GRE"]
[BlackTeam "GER"]
[WhiteClock "0:00:09"]
[BlackClock "0:00:37"]

1. e4 {[%clk 0:03:00]}  c5 {[%clk 0:02:58]} 2. Nf3 {[%clk 0:02:59]}  d6 {[%clk 0:02:59]} 3. d4 {[%clk 0:02:45]}  cxd4 {[%clk 0:02:59]} 4. Nxd4 {[%clk 0:02:46]}  Nf6 {[%clk 0:02:58]} 5. Nc3 {[%clk 0:02:46]}  a6 {[%clk 0:02:59]} 6. h3 {[%clk 0:02:26]}  e6 {[%clk 0:02:57]} 7. g4 {[%clk 0:02:11]}  b5 {[%clk 0:02:56]} 8. Bg2 {[%clk 0:02:01]}  Bb7 {[%clk 0:02:55]} 9. a3 {[%clk 0:01:51]}  Be7 {[%clk 0:02:47]} 10. g5 {[%clk 0:01:47]}  Nfd7 {[%clk 0:02:46]} 11. h4 {[%clk 0:01:43]}  Nc6 {[%clk 0:02:38]} 12. Be3 {[%clk 0:01:27]}  Rc8 {[%clk 0:02:20]} 13. Nxc6 {[%clk 0:01:27]}  Bxc6 {[%clk 0:02:20]} 14. Qd4 {[%clk 0:01:27]}  O-O {[%clk 0:02:07]} 15. f4 {[%clk 0:00:59]}  a5 {[%clk 0:01:52]} 16. h5 {[%clk 0:00:47]}  e5 {[%clk 0:01:40]} 17. Qd2 {[%clk 0:00:45]}  exf4 {[%clk 0:01:34]} 18. Bxf4 {[%clk 0:00:45]}  Ne5 {[%clk 0:01:33]} 19. h6 {[%clk 0:00:36]}  g6 {[%clk 0:01:29]} 20. O-O-O {[%clk 0:00:32]}  b4 {[%clk 0:01:27]} 21. axb4 {[%clk 0:00:27]}  axb4 {[%clk 0:01:26]} 22. Nd5 {[%clk 0:00:28]}  Bxd5 {[%clk 0:01:19]} 23. exd5 {[%clk 0:00:29]}  Qa5 {[%clk 0:01:11]} 24. Qd4 {[%clk 0:00:16]}  b3 {[%clk 0:01:03]} 25. c3 {[%clk 0:00:09]}  Qa1+ {[%clk 0:00:59]} 26. Kd2 {[%clk 0:00:09]}  Qxb2+ {[%clk 0:01:00]} 27. Ke1 {[%clk 0:00:09]}  Qxg2 {[%clk 0:00:58]} 28. Bxe5 {[%clk 0:00:10]}  Qxh1+ {[%clk 0:00:42]} 29. Ke2 {[%clk 0:00:09]}  Qh5+ {[%clk 0:00:37]} 30. Kd3 {[%clk 0:00:09]} 0-1

[Event "January 2 Late 2024"]
[Site "https://www.chess.com"]
[Date "2024.01.02"]
[Round "9"]
[White "Syaputra, Arifa Rizki"]
[Black "Pham, Le Thao Nguyen"]
[Result "1/2-1/2"]
[Board "45"]
[TimeControl "180+1"]
[WhiteFideId "7105100"]
[BlackFideId "12401226"]
[WhiteElo "2698"]
[BlackElo "2554"]
[WhiteTeam "INA"]
[BlackTeam "VIE"]
[WhiteClock "0:02:16"]
[BlackClock "0:01:11"]

1. e4 {[%clk 0:03:00]}  c5 {[%clk 0:02:26]} 2. Nf3 {[%clk 0:03:00]}  e6 {[%clk 0:02:26]} 3. d4 {[%clk 0:03:00]}  cxd4 {[%clk 0:02:27]} 4. Nxd4 {[%clk 0:03:01]}  a6 {[%clk 0:02:27]} 5. Bd3 {[%clk 0:03:00]}  Nc6 {[%clk 0:02:23]} 6. Nxc6 {[%clk 0:02:53]}  dxc6 {[%clk 0:02:24]} 7. O-O {[%clk 0:02:52]}  e5 {[%clk 0:02:25]} 8. f4 {[%clk 0:02:49]}  Bc5+ {[%clk 0:02:08]} 9. Kh1 {[%clk 0:02:49]}  Nf6 {[%clk 0:02:08]} 10. Nc3 {[%clk 0:02:28]}  Ng4 {[%clk 0:02:06]} 11. Qf3 {[%clk 0:02:25]}  Qh4 {[%clk 0:02:00]} 12. h3 {[%clk 0:02:25]}  Nf2+ {[%clk 0:01:47]} 13. Kh2 {[%clk 0:02:24]}  Ng4+ {[%clk 0:01:31]} 14. Kh1 {[%clk 0:02:24]}  Nf2+ {[%clk 0:01:12]} 15. Kh2 {[%clk 0:02:16]}  Ng4+ {[%clk 0:01:11]} 16. Kh1 {[%clk 0:02:16]} 1/2-1/2

[Event "January 2 Late 2024"]
[Site "https://www.chess.com"]
[Date "2024.01.02"]
[Round "9"]
[White "Sevgi, Volkan"]
[Black "Pinheiro, Iung Alicio de O."]
[Result "1-0"]
[Board "46"]
[TimeControl "180+1"]
[WhiteFideId "6325335"]
[BlackFideId "2104350"]
[WhiteElo "2684"]
[BlackElo "2550"]
[WhiteTeam "TUR"]
[BlackTeam "BRA"]
[WhiteClock "0:00:04"]
[BlackClock "0:00:01"]

1. e4 {[%clk 0:03:00]}  c5 {[%clk 0:02:58]} 2. Nc3 {[%clk 0:03:01]}  e6 {[%clk 0:02:54]} 3. f4 {[%clk 0:02:59]}  d5 {[%clk 0:02:53]} 4. Nf3 {[%clk 0:02:59]}  dxe4 {[%clk 0:02:37]} 5. Nxe4 {[%clk 0:02:54]}  Nh6 {[%clk 0:02:33]} 6. b3 {[%clk 0:02:28]}  Nf5 {[%clk 0:02:25]} 7. Bb2 {[%clk 0:02:26]}  Be7 {[%clk 0:02:22]} 8. Bb5+ {[%clk 0:02:05]}  Bd7 {[%clk 0:02:19]} 9. Bd3 {[%clk 0:02:00]}  O-O {[%clk 0:02:03]} 10. O-O {[%clk 0:01:58]}  Nc6 {[%clk 0:01:59]} 11. a3 {[%clk 0:01:58]}  Bc8 {[%clk 0:01:55]} 12. Qe1 {[%clk 0:01:53]}  b6 {[%clk 0:01:54]} 13. Ne5 {[%clk 0:01:17]}  Bb7 {[%clk 0:01:48]} 14. Qf2 {[%clk 0:01:08]}  Rc8 {[%clk 0:01:41]} 15. Rae1 {[%clk 0:01:08]}  Bh4 {[%clk 0:01:29]} 16. g3 {[%clk 0:01:06]}  Be7 {[%clk 0:01:28]} 17. g4 {[%clk 0:00:55]}  Bh4 {[%clk 0:01:23]} 18. Ng3 {[%clk 0:00:54]}  Nfd4 {[%clk 0:01:18]} 19. Be4 {[%clk 0:00:30]}  Nxe5 {[%clk 0:01:08]} 20. Bxb7 {[%clk 0:00:21]}  Nxg4 {[%clk 0:01:06]} 21. Qg2 {[%clk 0:00:21]}  Rc7 {[%clk 0:00:58]} 22. Be4 {[%clk 0:00:20]}  f5 {[%clk 0:00:55]} 23. Bd3 {[%clk 0:00:21]}  Nxb3 {[%clk 0:00:47]} 24. Rxe6 {[%clk 0:00:21]}  Nd4 {[%clk 0:00:47]} 25. Ree1 {[%clk 0:00:19]}  g6 {[%clk 0:00:48]} 26. Bc4+ {[%clk 0:00:19]}  Kh8 {[%clk 0:00:46]} 27. d3 {[%clk 0:00:17]}  Bf6 {[%clk 0:00:46]} 28. c3 {[%clk 0:00:16]}  Nc6 {[%clk 0:00:46]} 29. Re6 {[%clk 0:00:15]}  Na5 {[%clk 0:00:45]} 30. Bd5 {[%clk 0:00:13]}  Rd7 {[%clk 0:00:44]} 31. c4 {[%clk 0:00:13]}  Rd6 {[%clk 0:00:31]} 32. Rfe1 {[%clk 0:00:12]}  Nb3 {[%clk 0:00:30]} 33. Rxd6 {[%clk 0:00:11]}  Qxd6 {[%clk 0:00:30]} 34. Re6 {[%clk 0:00:12]}  Qd8 {[%clk 0:00:30]} 35. h3 {[%clk 0:00:12]}  Nd4 {[%clk 0:00:17]} 36. Re1 {[%clk 0:00:08]}  Nh6 {[%clk 0:00:16]} 37. Kh1 {[%clk 0:00:07]}  Nf7 {[%clk 0:00:16]} 38. Ne2 {[%clk 0:00:07]}  Re8 {[%clk 0:00:12]} 39. Bxf7 {[%clk 0:00:07]}  Re3 {[%clk 0:00:11]} 40. Bd5 {[%clk 0:00:05]}  Qe7 {[%clk 0:00:10]} 41. Bxd4 {[%clk 0:00:05]}  Bxd4 {[%clk 0:00:10]} 42. Bf3 {[%clk 0:00:05]}  Kg7 {[%clk 0:00:10]} 43. Rf1 {[%clk 0:00:06]}  Rxd3 {[%clk 0:00:10]} 44. Nxd4 {[%clk 0:00:06]}  Rxd4 {[%clk 0:00:10]} 45. Bd5 {[%clk 0:00:07]}  Qe3 {[%clk 0:00:10]} 46. Qf3 {[%clk 0:00:07]}  Qd2 {[%clk 0:00:10]} 47. Rf2 {[%clk 0:00:08]}  Qe1+ {[%clk 0:00:09]} 48. Rf1 {[%clk 0:00:08]}  Qd2 {[%clk 0:00:10]} 49. Qg2 {[%clk 0:00:08]}  Qc3 {[%clk 0:00:10]} 50. Rf3 {[%clk 0:00:06]}  Qe1+ {[%clk 0:00:10]} 51. Qf1 {[%clk 0:00:04]}  Qd2 {[%clk 0:00:08]} 52. Rf2 {[%clk 0:00:04]}  Qc3 {[%clk 0:00:08]} 53. Kh2 {[%clk 0:00:03]}  Rd3 {[%clk 0:00:07]} 54. Bg2 {[%clk 0:00:03]}  Qd4 {[%clk 0:00:07]} 55. Qe2 {[%clk 0:00:03]}  Kh6 {[%clk 0:00:06]} 56. Rf1 {[%clk 0:00:03]}  Rd2 {[%clk 0:00:06]} 57. Qf3 {[%clk 0:00:03]}  Qb2 {[%clk 0:00:06]} 58. Qg3 {[%clk 0:00:04]}  Qd4 {[%clk 0:00:06]} 59. Re1 {[%clk 0:00:04]}  Kg7 {[%clk 0:00:07]} 60. Re7+ {[%clk 0:00:04]}  Kf8 {[%clk 0:00:07]} 61. Rxh7 {[%clk 0:00:04]}  Qb2 {[%clk 0:00:04]} 62. Rxa7 {[%clk 0:00:04]}  Rd1 {[%clk 0:00:03]} 63. Qxg6 {[%clk 0:00:04]}  Qd4 {[%clk 0:00:01]} 64. Qf7# {[%clk 0:00:04]} 1-0

[Event "January 2 Late 2024"]
[Site "https://www.chess.com"]
[Date "2024.01.02"]
[Round "9"]
[White "Play, Gilles"]
[Black "Janaszak, Dawid"]
[Result "0-1"]
[Board "51"]
[TimeControl "180+1"]
[WhiteFideId "45130892"]
[BlackFideId "1119206"]
[WhiteElo "2523"]
[BlackElo "2632"]
[WhiteTeam "FRA"]
[BlackTeam "POL"]
[WhiteClock "0:00:02"]
[BlackClock "0:00:54"]

1. e4 {[%clk 0:03:00]}  c5 {[%clk 0:02:59]} 2. c3 {[%clk 0:02:59]}  e5 {[%clk 0:02:58]} 3. Nf3 {[%clk 0:02:56]}  Nc6 {[%clk 0:02:58]} 4. Bc4 {[%clk 0:02:56]}  Nf6 {[%clk 0:02:58]} 5. Ng5 {[%clk 0:02:56]}  d5 {[%clk 0:02:58]} 6. exd5 {[%clk 0:02:56]}  Na5 {[%clk 0:02:59]} 7. Bb5+ {[%clk 0:02:50]}  Bd7 {[%clk 0:02:59]} 8. Qa4 {[%clk 0:02:47]}  Bd6 {[%clk 0:02:51]} 9. Bxd7+ {[%clk 0:02:43]}  Nxd7 {[%clk 0:02:49]} 10. Ne6 {[%clk 0:02:38]}  fxe6 {[%clk 0:02:49]} 11. dxe6 {[%clk 0:02:38]}  Nc6 {[%clk 0:02:49]} 12. exd7+ {[%clk 0:02:38]}  Qxd7 {[%clk 0:02:50]} 13. O-O {[%clk 0:02:32]}  O-O {[%clk 0:02:48]} 14. d3 {[%clk 0:02:31]}  Kh8 {[%clk 0:02:42]} 15. Nd2 {[%clk 0:02:30]}  Bc7 {[%clk 0:02:39]} 16. Ne4 {[%clk 0:02:25]}  b6 {[%clk 0:02:26]} 17. Be3 {[%clk 0:02:16]}  Rad8 {[%clk 0:02:25]} 18. b4 {[%clk 0:02:05]}  cxb4 {[%clk 0:02:18]} 19. cxb4 {[%clk 0:02:06]}  Nd4 {[%clk 0:02:12]} 20. Qxd7 {[%clk 0:01:51]}  Rxd7 {[%clk 0:02:13]} 21. Ng5 {[%clk 0:01:31]}  Bd8 {[%clk 0:01:54]} 22. Bxd4 {[%clk 0:01:28]}  Bxg5 {[%clk 0:01:52]} 23. Bxe5 {[%clk 0:01:26]}  Rxd3 {[%clk 0:01:52]} 24. Rad1 {[%clk 0:01:19]}  Rfd8 {[%clk 0:01:52]} 25. Rxd3 {[%clk 0:01:05]}  Rxd3 {[%clk 0:01:53]} 26. a4 {[%clk 0:00:57]}  Kg8 {[%clk 0:01:51]} 27. b5 {[%clk 0:00:53]}  Kf7 {[%clk 0:01:44]} 28. Bb8 {[%clk 0:00:52]}  Rd7 {[%clk 0:01:43]} 29. f4 {[%clk 0:00:51]}  Be7 {[%clk 0:01:40]} 30. Rc1 {[%clk 0:00:50]}  Bc5+ {[%clk 0:01:41]} 31. Kh1 {[%clk 0:00:43]}  Rd4 {[%clk 0:01:38]} 32. a5 {[%clk 0:00:40]}  bxa5 {[%clk 0:01:31]} 33. g3 {[%clk 0:00:33]}  Bb6 {[%clk 0:01:27]} 34. Bxa7 {[%clk 0:00:33]}  Rd6 {[%clk 0:01:12]} 35. Rc6 {[%clk 0:00:23]}  Rxc6 {[%clk 0:01:10]} 36. bxc6 {[%clk 0:00:23]}  Bc7 {[%clk 0:01:10]} 37. Bc5 {[%clk 0:00:21]}  Ke6 {[%clk 0:01:10]} 38. Kg2 {[%clk 0:00:21]}  Kd5 {[%clk 0:01:10]} 39. Bf8 {[%clk 0:00:21]}  g6 {[%clk 0:01:10]} 40. Kf3 {[%clk 0:00:21]}  Kxc6 {[%clk 0:01:10]} 41. Ke4 {[%clk 0:00:22]}  Bd6 {[%clk 0:01:10]} 42. Bg7 {[%clk 0:00:20]}  a4 {[%clk 0:01:10]} 43. f5 {[%clk 0:00:21]}  gxf5+ {[%clk 0:01:09]} 44. Kxf5 {[%clk 0:00:22]}  Kd5 {[%clk 0:01:08]} 45. Kg5 {[%clk 0:00:21]}  Bc5 {[%clk 0:01:08]} 46. Kh6 {[%clk 0:00:21]}  Bd4 {[%clk 0:01:09]} 47. Bf8 {[%clk 0:00:21]}  Bc5 {[%clk 0:01:05]} 48. Bg7 {[%clk 0:00:21]}  a3 {[%clk 0:01:05]} 49. Kxh7 {[%clk 0:00:21]}  a2 {[%clk 0:01:03]} 50. g4 {[%clk 0:00:11]}  Bd4 {[%clk 0:01:04]} 51. Bxd4 {[%clk 0:00:10]}  Kxd4 {[%clk 0:01:05]} 52. g5 {[%clk 0:00:11]}  a1=Q {[%clk 0:01:05]} 53. g6 {[%clk 0:00:11]}  Qb1 {[%clk 0:01:03]} 54. Kh6 {[%clk 0:00:11]}  Qc1+ {[%clk 0:01:04]} 55. Kh7 {[%clk 0:00:11]}  Qc2 {[%clk 0:01:04]} 56. h4 {[%clk 0:00:10]}  Qf5 {[%clk 0:01:02]} 57. Kh6 {[%clk 0:00:09]}  Qf6 {[%clk 0:01:01]} 58. h5 {[%clk 0:00:09]}  Ke5 {[%clk 0:00:58]} 59. Kh7 {[%clk 0:00:09]}  Qf5 {[%clk 0:00:56]} 60. h6 {[%clk 0:00:07]}  Kf6 {[%clk 0:00:55]} 61. Kh8 {[%clk 0:00:07]}  Kxg6 {[%clk 0:00:54]} 62. Kg8 {[%clk 0:00:02]}  Qf7+ {[%clk 0:00:54]} 0-1

[Event "January 2 Late 2024"]
[Site "https://www.chess.com"]
[Date "2024.01.02"]
[Round "9"]
[White "Golubev, Mikhail"]
[Black "Osmak, Yuliia"]
[Result "1-0"]
[Board "52"]
[TimeControl "180+1"]
[WhiteFideId "14100983"]
[BlackFideId "14101602"]
[WhiteElo "2629"]
[BlackElo "2523"]
[WhiteTeam "UKR"]
[BlackTeam "UKR"]
[WhiteClock "0:00:09"]
[BlackClock "0:00:17"]

1. e4 {[%clk 0:03:00]}  c5 {[%clk 0:02:58]} 2. Nf3 {[%clk 0:03:00]}  Nc6 {[%clk 0:02:59]} 3. Nc3 {[%clk 0:03:00]}  e5 {[%clk 0:02:57]} 4. Bc4 {[%clk 0:02:58]}  d6 {[%clk 0:02:56]} 5. d3 {[%clk 0:02:58]}  Be6 {[%clk 0:02:54]} 6. Nd2 {[%clk 0:02:53]}  Be7 {[%clk 0:02:52]} 7. Nf1 {[%clk 0:02:53]}  Nf6 {[%clk 0:02:31]} 8. Ne3 {[%clk 0:02:53]}  O-O {[%clk 0:02:28]} 9. O-O {[%clk 0:02:52]}  Nd4 {[%clk 0:02:25]} 10. Ned5 {[%clk 0:02:39]}  Nxd5 {[%clk 0:02:20]} 11. Bxd5 {[%clk 0:02:37]}  Qd7 {[%clk 0:02:19]} 12. f4 {[%clk 0:02:31]}  Bg4 {[%clk 0:02:07]} 13. Qd2 {[%clk 0:02:30]}  exf4 {[%clk 0:01:58]} 14. Qf2 {[%clk 0:02:16]}  g5 {[%clk 0:01:48]} 15. h4 {[%clk 0:01:58]}  h6 {[%clk 0:01:46]} 16. hxg5 {[%clk 0:01:52]}  hxg5 {[%clk 0:01:47]} 17. Bxf4 {[%clk 0:01:46]}  gxf4 {[%clk 0:01:43]} 18. Qxf4 {[%clk 0:01:46]}  Ne2+ {[%clk 0:01:21]} 19. Nxe2 {[%clk 0:01:42]}  Bxe2 {[%clk 0:01:22]} 20. Qh6 {[%clk 0:00:46]}  Qg4 {[%clk 0:01:18]} 21. Rf2 {[%clk 0:00:36]}  Bg5 {[%clk 0:01:02]} 22. Qg6+ {[%clk 0:00:33]}  Kh8 {[%clk 0:01:02]} 23. Bxf7 {[%clk 0:00:33]}  Be3 {[%clk 0:00:38]} 24. Qf6+ {[%clk 0:00:33]}  Qg7 {[%clk 0:00:37]} 25. Qh4+ {[%clk 0:00:31]}  Qh7 {[%clk 0:00:37]} 26. Qf6+ {[%clk 0:00:30]}  Qg7 {[%clk 0:00:37]} 27. Qh4+ {[%clk 0:00:30]}  Qh6 {[%clk 0:00:29]} 28. Qxh6+ {[%clk 0:00:22]}  Bxh6 {[%clk 0:00:30]} 29. Rxe2 {[%clk 0:00:20]}  Rxf7 {[%clk 0:00:30]} 30. Rf1 {[%clk 0:00:18]}  Raf8 {[%clk 0:00:29]} 31. Rxf7 {[%clk 0:00:17]}  Rxf7 {[%clk 0:00:30]} 32. g3 {[%clk 0:00:16]}  Kg7 {[%clk 0:00:29]} 33. Kg2 {[%clk 0:00:16]}  Kf6 {[%clk 0:00:29]} 34. Re1 {[%clk 0:00:15]}  Ke6 {[%clk 0:00:27]} 35. Rh1 {[%clk 0:00:15]}  Bg7 {[%clk 0:00:27]} 36. c3 {[%clk 0:00:14]}  b5 {[%clk 0:00:26]} 37. a3 {[%clk 0:00:13]}  a5 {[%clk 0:00:26]} 38. Rh5 {[%clk 0:00:11]}  Be5 {[%clk 0:00:22]} 39. Rh6+ {[%clk 0:00:10]}  Rf6 {[%clk 0:00:20]} 40. Rh7 {[%clk 0:00:10]}  Rh6 {[%clk 0:00:17]} 41. Rxh6+ {[%clk 0:00:09]} 1-0

[Event "January 2 Late 2024"]
[Site "https://www.chess.com"]
[Date "2024.01.02"]
[Round "9"]
[White "Poltorak, Sebastian"]
[Black "uzkuzk"]
[Result "0-1"]
[Board "54"]
[TimeControl "180+1"]
[WhiteFideId "1199498"]
[WhiteElo "2624"]
[BlackElo "2478"]
[WhiteTeam "POL"]
[WhiteClock "0:00:13"]
[BlackClock "0:01:31"]

1. e4 {[%clk 0:03:00]}  e5 {[%clk 0:03:00]} 2. Nc3 {[%clk 0:03:00]}  f5 {[%clk 0:02:57]} 3. d4 {[%clk 0:02:51]}  exd4 {[%clk 0:02:54]} 4. Qxd4 {[%clk 0:02:51]}  Nc6 {[%clk 0:02:53]} 5. Qc4 {[%clk 0:02:40]}  fxe4 {[%clk 0:02:47]} 6. Qxe4+ {[%clk 0:02:34]}  Be7 {[%clk 0:02:45]} 7. Bc4 {[%clk 0:02:29]}  Nf6 {[%clk 0:02:43]} 8. Qh4 {[%clk 0:02:01]}  d5 {[%clk 0:02:40]} 9. Nxd5 {[%clk 0:01:50]}  Ne5 {[%clk 0:02:21]} 10. Nxf6+ {[%clk 0:01:24]}  Bxf6 {[%clk 0:02:22]} 11. Qe4 {[%clk 0:01:24]}  Qe7 {[%clk 0:02:15]} 12. Be3 {[%clk 0:01:13]}  Qb4+ {[%clk 0:01:54]} 13. c3 {[%clk 0:00:22]}  Qxc4 {[%clk 0:01:51]} 14. Qxc4 {[%clk 0:00:21]}  Nxc4 {[%clk 0:01:52]} 15. O-O-O {[%clk 0:00:22]}  Nxe3 {[%clk 0:01:49]} 16. Re1 {[%clk 0:00:22]}  O-O {[%clk 0:01:47]} 17. fxe3 {[%clk 0:00:22]}  Bg4 {[%clk 0:01:38]} 18. h3 {[%clk 0:00:13]}  Bh4 {[%clk 0:01:31]} 0-1